fUSD/lending_fUSD_20260624
["ID","MTS","AMOUNT","RATE_DAILY","PERIOD"]
[426321395,1782304240000,-151.0,0.00016275,2]
[426321405,1782304240000,-1993.101868,0.00016438,2]
[426321397,1782304240000,-17294.57,0.0001639,2]
[426321402,1782304240000,-549.83500001,0.00016438,2]
[426321404,1782304240000,-1993.101868,0.00016438,2]
[426321398,1782304240000,-1033.68935389,0.000164,2]
[426321400,1782304240000,-151.0,0.00016418,2]
[426321403,1782304240000,-151.0,0.00016438,2]
[426321393,1782304240000,-151.0,0.00016275,2]
[426321415,1782304240000,-152.0,0.00016518,2]
[426321430,1782304240000,-1683.48713558,0.0001738,2]
[426321421,1782304240000,-163.19,0.00016692,2]
[426321411,1782304240000,-228.930291,0.00016438,2]
[426321408,1782304240000,-1993.101868,0.00016438,2]
[426321417,1782304240000,-1365.17,0.00016518,2]
[426321420,1782304240000,-7754.96855568,0.00016666,2]
[426321416,1782304240000,-383.0,0.00016518,2]
[426321419,1782304240000,-546.71,0.00016637,2]
[426321414,1782304240000,-228.930291,0.00016438,2]
[426321409,1782304240000,-228.930291,0.00016438,2]
[426321413,1782304240000,-228.930291,0.00016438,2]
[426321418,1782304240000,-1033.68935389,0.000166,2]
[426321495,1782304241000,-617.54067802,0.00018299,2]
[426321497,1782304241000,-549.83500001,0.00018375,2]
[426321496,1782304241000,-223.93963107,0.00018347,2]
[426321493,1782304241000,-301.447234,0.000182,2]
[426321494,1782304241000,-1500.0,0.00018212,2]
[426321488,1782304241000,-677.131901,0.0001805,2]
[426321482,1782304241000,-151.0,0.0001805,2]
[426321486,1782304241000,-677.131901,0.0001805,2]
[426321484,1782304241000,-228.930291,0.0001805,2]
[426321485,1782304241000,-677.131901,0.0001805,2]
[426321498,1782304241000,-240541.44314433,0.0001838,2]
[426321492,1782304241000,-724.25184848,0.000182,2]
[426321499,1782304241000,-677.131901,0.0001838,2]
[426321513,1782304241000,-500.0,0.00018426,2]
[426321500,1782304241000,-228.930291,0.0001838,2]
[426321501,1782304241000,-677.131901,0.0001838,2]
[426321502,1782304241000,-677.131901,0.0001838,2]
[426321504,1782304241000,-677.131901,0.0001838,2]
[426321506,1782304241000,-228.930291,0.0001838,2]
[426321507,1782304241000,-2969.87085726,0.0001838,2]
[426321508,1782304241000,-724.25184848,0.000184,2]
[426321505,1782304241000,-228.930291,0.0001838,2]
[426321510,1782304241000,-2041.006,0.000184,2]
[426321515,1782304241000,-623.10999442,0.00018426,2]
[426321509,1782304241000,-301.447234,0.000184,2]
[426321512,1782304241000,-606.3,0.0001841,2]
[426321487,1782304241000,-228.930291,0.0001805,2]
[426321503,1782304241000,-228.930291,0.0001838,2]
[426321489,1782304241000,-228.930291,0.0001805,2]
[426321455,1782304241000,-2600.0,0.000179,6]
[426321483,1782304241000,-677.131901,0.0001805,2]
[426321514,1782304241000,-500.0,0.00018426,2]
[426321457,1782304241000,-301.447234,0.00018,2]
[426321458,1782304241000,-350.0,0.00018,2]
[426321469,1782304241000,-500.0,0.00018049,2]
[426321459,1782304241000,-166.82772692,0.00018043,2]
[426321460,1782304241000,-500.0,0.00018048,2]
[426321462,1782304241000,-500.0,0.00018049,2]
[426321467,1782304241000,-500.0,0.00018049,2]
[426321464,1782304241000,-500.0,0.00018049,2]
[426321466,1782304241000,-1304.86,0.00018049,2]
[426321463,1782304241000,-500.0,0.00018049,2]
[426321465,1782304241000,-500.0,0.00018049,2]
[426321461,1782304241000,-500.0,0.00018049,2]
[426321468,1782304241000,-500.0,0.00018049,2]
[426321479,1782304241000,-284.744574,0.0001805,2]
[426321473,1782304241000,-159.473421,0.0001805,2]
[426321480,1782304241000,-284.744574,0.0001805,2]
[426321476,1782304241000,-1993.101868,0.0001805,2]
[426321472,1782304241000,-157.275331,0.0001805,2]
[426321470,1782304241000,-169385.2546034,0.0001805,2]
[426321477,1782304241000,-1993.101868,0.0001805,2]
[426321474,1782304241000,-1993.101868,0.0001805,2]
[426321478,1782304241000,-284.744574,0.0001805,2]
[426321475,1782304241000,-1993.101868,0.0001805,2]
[426321471,1782304241000,-152.340665,0.0001805,2]
[426321481,1782304241000,-284.744574,0.0001805,2]
[426321490,1782304241000,-228.930291,0.0001805,2]
[426321491,1782304241000,-1781.0172224,0.00018098,2]
[426321511,1782304241000,-158.527,0.000184,2]
[426321456,1782304241000,-724.25184848,0.00018,2]
[426321516,1782304241000,-500.0,0.00018427,2]
[426321550,1782304241000,-183.429688,0.00018429,2]
[426321548,1782304241000,-284.744574,0.00018429,2]
[426321547,1782304241000,-284.744574,0.00018429,2]
[426321546,1782304241000,-284.744574,0.00018429,2]
[426321551,1782304241000,-677.131901,0.00018429,2]
[426321561,1782304241000,-815.0,0.00018474,5]
[426321557,1782304241000,-228.930291,0.00018429,2]
[426321562,1782304241000,-724.25184848,0.000185,2]
[426321556,1782304241000,-677.131904,0.00018429,2]
[426321565,1782304241000,-500.0,0.00018699,2]
[426321559,1782304241000,-291898.20932707,0.00018429,2]
[426321555,1782304241000,-228.930291,0.00018429,2]
[426321564,1782304241000,-44030.89753058,0.00018622,2]
[426321563,1782304241000,-301.447234,0.000185,2]
[426321567,1782304241000,-724.25184848,0.000187,2]
[426321558,1782304241000,-228.930287,0.00018429,2]
[426321566,1782304241000,-1304.86,0.00018699,2]
[426321568,1782304241000,-301.447234,0.000187,2]
[426321569,1782304241000,-151.14,0.0001874,2]
[426321572,1782304241000,-1555.5,0.0001876,2]
[426321571,1782304241000,-295.0,0.00018746,2]
[426321570,1782304241000,-246.0,0.00018742,2]
[426321576,1782304241000,-150.0,0.00018862,2]
[426321575,1782304241000,-562.0,0.00018804,2]
[426321573,1782304241000,-500.0,0.00018799,2]
[426321574,1782304241000,-46362.88256878,0.000188,2]
[426321517,1782304241000,-284.744574,0.00018427,2]
[426321549,1782304241000,-284.744574,0.00018429,2]
[426321545,1782304241000,-1993.101878,0.00018429,2]
[426321560,1782304241000,-7754.96855568,0.00018447,2]
[426321554,1782304241000,-677.131901,0.00018429,2]
[426321519,1782304241000,-284.744574,0.00018427,2]
[426321544,1782304241000,-1993.101868,0.00018429,2]
[426321528,1782304241000,-500.0,0.00018428,2]
[426321527,1782304241000,-379.99,0.00018428,2]
[426321518,1782304241000,-284.744574,0.00018427,2]
[426321522,1782304241000,-152.0,0.00018427,5]
[426321523,1782304241000,-500.0,0.00018428,2]
[426321520,1782304241000,-284.744574,0.00018427,2]
[426321521,1782304241000,-151.0,0.00018427,2]
[426321526,1782304241000,-500.0,0.00018428,2]
[426321525,1782304241000,-500.0,0.00018428,2]
[426321540,1782304241000,-473.16,0.00018428,2]
[426321531,1782304241000,-1993.101868,0.00018428,2]
[426321530,1782304241000,-500.0,0.00018428,2]
[426321524,1782304241000,-500.0,0.00018428,2]
[426321532,1782304241000,-1993.101868,0.00018428,2]
[426321552,1782304241000,-228.930291,0.00018429,2]
[426321529,1782304241000,-500.0,0.00018428,2]
[426321553,1782304241000,-677.131901,0.00018429,2]
[426321543,1782304241000,-1993.101868,0.00018429,2]
[426321542,1782304241000,-1993.101868,0.00018429,2]
[426321537,1782304241000,-1304.86,0.00018428,2]
[426321538,1782304241000,-1304.86,0.00018428,2]
[426321541,1782304241000,-219.0,0.00018429,5]
[426321539,1782304241000,-500.0,0.00018428,2]
[426321534,1782304241000,-1993.101868,0.00018428,2]
[426321535,1782304241000,-500.0,0.00018428,2]
[426321533,1782304241000,-1993.101868,0.00018428,2]
[426321536,1782304241000,-500.0,0.00018428,2]
[426321632,1782304242000,-269.553431,0.00019178,2]
[426321626,1782304242000,-269.553431,0.00019178,2]
[426321624,1782304242000,-269.553431,0.00019178,2]
[426321621,1782304242000,-269.553431,0.00019178,2]
[426321620,1782304242000,-269.553431,0.00019178,2]
[426321617,1782304242000,-269.553431,0.00019178,2]
[426321622,1782304242000,-269.553431,0.00019178,2]
[426321609,1782304242000,-151.0,0.00019178,2]
[426321610,1782304242000,-151.0,0.00019178,2]
[426321611,1782304242000,-299.291521,0.00019178,2]
[426321634,1782304242000,-269.553425,0.00019178,2]
[426321619,1782304242000,-269.553431,0.00019178,2]
[426321625,1782304242000,-269.553431,0.00019178,2]
[426321639,1782304242000,-166.82772692,0.00019257,2]
[426321635,1782304242000,-151.0,0.00019178,2]
[426321627,1782304242000,-269.553431,0.00019178,2]
[426321629,1782304242000,-269.553431,0.00019178,2]
[426321633,1782304242000,-269.553431,0.00019178,2]
[426321630,1782304242000,-269.553431,0.00019178,2]
[426321631,1782304242000,-269.553431,0.00019178,2]
[426321628,1782304242000,-269.553431,0.00019178,2]
[426321636,1782304242000,-152.570663,0.00019178,2]
[426321642,1782304242000,-1613.0535,0.00019308,2]
[426321645,1782304242000,-252.1,0.00019351,2]
[426321641,1782304242000,-173.24479151,0.00019302,2]
[426321647,1782304242000,-150.0,0.00019355,7]
[426321606,1782304242000,-151.0,0.00019178,2]
[426321623,1782304242000,-269.553431,0.00019178,2]
[426321615,1782304242000,-269.553431,0.00019178,2]
[426321580,1782304242000,-236.64364187,0.000189,2]
[426321612,1782304242000,-269.553431,0.00019178,2]
[426321637,1782304242000,-300.0,0.00019205,7]
[426321579,1782304242000,-6011.1909,0.0001888,2]
[426321577,1782304242000,-295.0,0.00018868,2]
[426321578,1782304242000,-4442.74918615,0.0001888,2]
[426321581,1782304242000,-4000.0,0.000189,6]
[426321583,1782304242000,-500.0,0.00018904,2]
[426321584,1782304242000,-470.4156885,0.00018904,2]
[426321582,1782304242000,-500.0,0.00018904,2]
[426321586,1782304242000,-160.0,0.00018969,2]
[426321585,1782304242000,-1000.37,0.00018905,2]
[426321592,1782304242000,-250.0,0.00019178,2]
[426321587,1782304242000,-150.0,0.00019,2]
[426321589,1782304242000,-2634.74625399,0.00019011,2]
[426321613,1782304242000,-269.553431,0.00019178,2]
[426321588,1782304242000,-500.0,0.0001901,2]
[426321590,1782304242000,-162.1629713,0.0001911,2]
[426321594,1782304242000,-269.22972529,0.00019178,2]
[426321595,1782304242000,-284.744574,0.00019178,2]
[426321596,1782304242000,-284.744574,0.00019178,2]
[426321593,1782304242000,-250.0,0.00019178,2]
[426321600,1782304242000,-151.0,0.00019178,2]
[426321597,1782304242000,-284.744574,0.00019178,2]
[426321598,1782304242000,-284.74458,0.00019178,2]
[426321602,1782304242000,-151.0,0.00019178,2]
[426321603,1782304242000,-151.0,0.00019178,2]
[426321601,1782304242000,-151.0,0.00019178,2]
[426321599,1782304242000,-3000.0,0.00019178,2]
[426321608,1782304242000,-151.0,0.00019178,2]
[426321591,1782304242000,-250.0,0.00019178,2]
[426321643,1782304242000,-7754.96855568,0.00019338,2]
[426321649,1782304242000,-500.0,0.00019399,2]
[426321648,1782304242000,-500.0,0.00019399,2]
[426321680,1782304242000,-238.47375212,0.0002,2]
[426321686,1782304242000,-170269.72966871,0.0002,2]
[426321687,1782304242000,-2000.0,0.0002,7]
[426321681,1782304242000,-4090.76104032,0.0002,2]
[426321682,1782304242000,-3022.37359993,0.0002,2]
[426321685,1782304242000,-214.5,0.0002,2]
[426321688,1782304242000,-77159.74924861,0.0002,2]
[426321684,1782304242000,-152.0,0.0002,2]
[426321690,1782304242000,-312.56001944,0.0002,2]
[426321693,1782304242000,-895.51924836,0.0002,2]
[426321692,1782304242000,-203.76735212,0.0002,2]
[426321697,1782304242000,-2354.0,0.0002,2]
[426321701,1782304242000,-1019.0,0.0002,2]
[426321683,1782304242000,-12220.91024897,0.0002,2]
[426321702,1782304242000,-333.0,0.0002,2]
[426321691,1782304242000,-427.98400803,0.0002,2]
[426321695,1782304242000,-154.0,0.0002,2]
[426321698,1782304242000,-313.0,0.0002,2]
[426321700,1782304242000,-400.0,0.0002,2]
[426321694,1782304242000,-503.0,0.0002,2]
[426321699,1782304242000,-251.0,0.0002,2]
[426321704,1782304242000,-1659.0,0.0002,2]
[426321705,1782304242000,-155.0,0.0002,2]
[426321646,1782304242000,-366.99,0.00019355,7]
[426321706,1782304242000,-718.0,0.0002,2]
[426321710,1782304242000,-500.0,0.0002,2]
[426321708,1782304242000,-500.0,0.0002,2]
[426321703,1782304242000,-373.0,0.0002,2]
[426321696,1782304242000,-1606.0,0.0002,2]
[426321678,1782304242000,-43039.0,0.0002,2]
[426321707,1782304242000,-159.0,0.0002,2]
[426321679,1782304242000,-2777.0,0.0002,2]
[426321689,1782304242000,-1495.09081144,0.0002,2]
[426321650,1782304242000,-631.91,0.00019399,2]
[426321653,1782304242000,-500.0,0.00019399,2]
[426321652,1782304242000,-1000.0,0.00019399,2]
[426321663,1782304242000,-602.0,0.00019452,2]
[426321664,1782304242000,-383.0,0.00019518,2]
[426321662,1782304242000,-430.0,0.00019452,2]
[426321655,1782304242000,-500.0,0.00019399,2]
[426321656,1782304242000,-366557.77377083,0.000194,2]
[426321661,1782304242000,-1304.86,0.00019451,2]
[426321654,1782304242000,-1304.86,0.00019399,2]
[426321657,1782304242000,-151.0,0.000194,2]
[426321658,1782304242000,-151.0,0.000194,2]
[426321659,1782304242000,-617.54067802,0.0001945,2]
[426321651,1782304242000,-153.80243392,0.00019399,2]
[426321665,1782304242000,-1361.0,0.00019518,2]
[426321660,1782304242000,-500.0,0.00019451,2]
[426321676,1782304242000,-1000.0,0.0002,2]
[426321674,1782304242000,-500.0,0.00019999,2]
[426321673,1782304242000,-500.0,0.00019999,2]
[426321669,1782304242000,-500.0,0.00019999,2]
[426321677,1782304242000,-1424.0,0.0002,2]
[426321668,1782304242000,-1672.7364795,0.00019856,2]
[426321671,1782304242000,-269.74935758,0.00019999,2]
[426321675,1782304242000,-50000.0,0.0002,2]
[426321672,1782304242000,-1304.86,0.00019999,2]
[426321667,1782304242000,-325.13,0.00019565,2]
[426321666,1782304242000,-844.0,0.00019556,2]
[426321670,1782304242000,-500.0,0.00019999,2]
[426321739,1782304243000,-482.48,0.00020384,2]
[426321743,1782304243000,-1734.62772924,0.00020404,2]
[426321742,1782304243000,-895.51924836,0.000204,2]
[426321750,1782304243000,-150.0,0.0002058,2]
[426321748,1782304243000,-11115.07,0.00020548,2]
[426321751,1782304243000,-150.0,0.0002058,2]
[426321747,1782304243000,-2435.34,0.00020548,2]
[426321745,1782304243000,-166.82772692,0.00020471,2]
[426321746,1782304243000,-1125.0,0.00020497,2]
[426321752,1782304243000,-150.0,0.0002058,2]
[426321749,1782304243000,-150.0,0.0002058,2]
[426321768,1782304243000,-150.42358524,0.00020688,4]
[426321766,1782304243000,-6886.0,0.00020656,2]
[426321753,1782304243000,-187.68979449,0.0002058,2]
[426321755,1782304243000,-617.54067802,0.000206,2]
[426321770,1782304243000,-150.0,0.00020688,4]
[426321764,1782304243000,-1304.86,0.00020644,2]
[426321756,1782304243000,-1495.09081144,0.000206,2]
[426321772,1782304243000,-150.30481069,0.00020688,4]
[426321774,1782304243000,-150.0,0.00020688,4]
[426321760,1782304243000,-895.51924836,0.000206,2]
[426321762,1782304243000,-785.0,0.00020606,2]
[426321740,1782304243000,-1495.09081144,0.000204,2]
[426321754,1782304243000,-350.0,0.00020584,3]
[426321738,1782304243000,-396.27,0.00020384,2]
[426321719,1782304243000,-13553.12,0.0002,2]
[426321733,1782304243000,-7754.96855568,0.00020228,2]
[426321714,1782304243000,-500.0,0.0002,2]
[426321713,1782304243000,-500.0,0.0002,2]
[426321715,1782304243000,-500.0,0.0002,2]
[426321712,1782304243000,-500.0,0.0002,2]
[426321711,1782304243000,-500.0,0.0002,2]
[426321717,1782304243000,-500.0,0.0002,2]
[426321728,1782304243000,-357.0,0.00020141,7]
[426321727,1782304243000,-262.376479,0.00020136,2]
[426321716,1782304243000,-500.0,0.0002,2]
[426321729,1782304243000,-1495.09081144,0.000202,2]
[426321718,1782304243000,-290.67502157,0.0002,2]
[426321723,1782304243000,-800.0,0.0002,2]
[426321724,1782304243000,-300.0,0.000201,10]
[426321726,1782304243000,-430.0,0.00020136,2]
[426321720,1782304243000,-200.0,0.0002,10]
[426321721,1782304243000,-200.0,0.0002,2]
[426321731,1782304243000,-203.76735212,0.000202,2]
[426321741,1782304243000,-427.98400803,0.000204,2]
[426321730,1782304243000,-427.98400803,0.000202,2]
[426321758,1782304243000,-427.98400803,0.000206,2]
[426321732,1782304243000,-895.51924836,0.000202,2]
[426321737,1782304243000,-606.3,0.00020381,2]
[426321734,1782304243000,-1166.20857094,0.00020274,2]
[426321736,1782304243000,-482.32,0.00020379,2]
[426321776,1782304243000,-150.0,0.00020688,4]
[426321735,1782304243000,-549.83500001,0.00020313,2]
[426321793,1782304243000,-190.82820862,0.00020711,4]
[426321828,1782304243000,-150.0,0.00020858,4]
[426321834,1782304243000,-1944.55644601,0.000209,2]
[426321836,1782304243000,-150.0,0.00020918,4]
[426321831,1782304243000,-190.82820862,0.00020897,4]
[426321830,1782304243000,-190.82820862,0.00020873,4]
[426321832,1782304243000,-500.0,0.00020899,2]
[426321833,1782304243000,-5300.0,0.000209,7]
[426321835,1782304243000,-11099.25856665,0.000209,2]
[426321841,1782304243000,-150.0,0.00020943,4]
[426321844,1782304243000,-207.14,0.00020957,2]
[426321843,1782304243000,-1798.80895522,0.00020952,2]
[426321845,1782304243000,-190.82820862,0.00020966,4]
[426321848,1782304243000,-190.82820862,0.0002099,4]
[426321847,1782304243000,-150.0,0.00020975,4]
[426321846,1782304243000,-150.0,0.00020975,4]
[426321842,1782304243000,-190.82820862,0.00020943,4]
[426321850,1782304243000,-300.0,0.00020999,2]
[426321851,1782304243000,-500.0,0.00020999,2]
[426321849,1782304243000,-150.0,0.00020994,4]
[426321853,1782304243000,-18629.34353613,0.00021,2]
[426321852,1782304243000,-50000.0,0.00021,2]
[426321854,1782304243000,-1215.60737807,0.00021,2]
[426321855,1782304243000,-200.62924855,0.00021,2]
[426321856,1782304243000,-160.0,0.00021,7]
[426321787,1782304243000,-150.0,0.00020688,4]
[426321838,1782304243000,-150.0,0.00020918,4]
[426321840,1782304243000,-785.0,0.00020939,2]
[426321744,1782304243000,-1784.89,0.00020466,2]
[426321837,1782304243000,-150.0,0.00020918,4]
[426321791,1782304243000,-22483.28726314,0.000207,2]
[426321795,1782304243000,-190.82820862,0.00020734,4]
[426321781,1782304243000,-150.0,0.00020688,4]
[426321777,1782304243000,-150.0,0.00020688,4]
[426321797,1782304243000,-150.0,0.00020745,4]
[426321783,1782304243000,-150.71682615,0.00020688,4]
[426321779,1782304243000,-150.0,0.00020688,4]
[426321785,1782304243000,-190.82820862,0.00020688,4]
[426321799,1782304243000,-190.82820862,0.00020757,4]
[426321812,1782304243000,-150.0,0.00020764,4]
[426321814,1782304243000,-150.0,0.00020773,4]
[426321819,1782304243000,-427.98400803,0.000208,2]
[426321789,1782304243000,-300.0,0.00020699,2]
[426321816,1782304243000,-190.82820862,0.00020781,4]
[426321818,1782304243000,-1495.09081144,0.000208,2]
[426321821,1782304243000,-150.0,0.00020803,4]
[426321839,1782304243000,-190.82820862,0.0002092,4]
[426321824,1782304243000,-430.0,0.00020821,2]
[426321822,1782304243000,-150.0,0.00020803,4]
[426321823,1782304243000,-190.82820862,0.00020804,4]
[426321827,1782304243000,-190.82820862,0.0002085,4]
[426321825,1782304243000,-190.82820862,0.00020827,4]
[426321826,1782304243000,-150.0,0.00020841,4]
[426321829,1782304243000,-150.0,0.0002086,4]
[426321820,1782304243000,-895.51924836,0.000208,2]
[426321896,1782304244000,-190.82820862,0.00021175,4]
[426321889,1782304244000,-150.0,0.00021113,4]
[426321893,1782304244000,-150.0,0.00021147,4]
[426321894,1782304244000,-150.0,0.00021147,4]
[426321885,1782304244000,-150.0,0.00021071,4]
[426321891,1782304244000,-190.82820862,0.00021129,4]
[426321887,1782304244000,-150.0,0.0002109,4]
[426321888,1782304244000,-190.82820862,0.00021106,4]
[426321886,1782304244000,-190.82820862,0.00021082,4]
[426321895,1782304244000,-190.82820862,0.00021152,4]
[426321892,1782304244000,-150.0,0.00021147,4]
[426321897,1782304244000,-150.0,0.00021198,4]
[426321899,1782304244000,-1495.09081144,0.000212,2]
[426321906,1782304244000,-190.82820862,0.00021222,4]
[426321904,1782304244000,-482.48,0.00021206,2]
[426321900,1782304244000,-1840.99930576,0.000212,2]
[426321902,1782304244000,-482.43,0.00021206,2]
[426321903,1782304244000,-644.34,0.00021206,2]
[426321901,1782304244000,-150.0,0.00021205,4]
[426321905,1782304244000,-482.48,0.00021206,2]
[426321907,1782304244000,-150.0,0.00021224,4]
[426321910,1782304244000,-150.0,0.00021262,4]
[426321881,1782304244000,-150.0,0.00021032,4]
[426321898,1782304244000,-190.82820862,0.00021198,4]
[426321879,1782304244000,-190.82820862,0.00021013,4]
[426321866,1782304244000,-154.0,0.00021,2]
[426321880,1782304244000,-150.0,0.00021028,4]
[426321858,1782304244000,-6534.17930064,0.00021,2]
[426321857,1782304244000,-10000.0,0.00021,2]
[426321860,1782304244000,-1495.09081144,0.00021,2]
[426321862,1782304244000,-277.65,0.00021,2]
[426321861,1782304244000,-1840.99930576,0.00021,2]
[426321859,1782304244000,-291.96,0.00021,2]
[426321863,1782304244000,-647.84,0.00021,2]
[426321868,1782304244000,-2354.0,0.00021,2]
[426321865,1782304244000,-503.0,0.00021,2]
[426321864,1782304244000,-276.2,0.00021,2]
[426321867,1782304244000,-1606.0,0.00021,2]
[426321878,1782304244000,-800.0,0.00021,2]
[426321872,1782304244000,-333.0,0.00021,2]
[426321908,1782304244000,-190.82820862,0.00021245,4]
[426321871,1782304244000,-1019.0,0.00021,2]
[426321869,1782304244000,-313.0,0.00021,2]
[426321870,1782304244000,-251.0,0.00021,2]
[426321875,1782304244000,-155.0,0.00021,2]
[426321877,1782304244000,-159.0,0.00021,2]
[426321882,1782304244000,-150.0,0.00021032,4]
[426321883,1782304244000,-190.82820862,0.00021036,4]
[426321874,1782304244000,-1659.0,0.00021,2]
[426321884,1782304244000,-190.82820862,0.00021059,4]
[426321876,1782304244000,-718.0,0.00021,2]
[426321873,1782304244000,-373.0,0.00021,2]
[426321917,1782304244000,-190.82820862,0.00021315,4]
[426321890,1782304244000,-7754.96855568,0.00021119,2]
[426321916,1782304244000,-150.0,0.00021301,4]
[426321943,1782304244000,-190.82820862,0.00021431,4]
[426321947,1782304244000,-150.0,0.00021454,4]
[426321951,1782304244000,-190.82820862,0.00021477,4]
[426321946,1782304244000,-1407.0,0.00021437,2]
[426321942,1782304244000,-177.60400487,0.0002143,2]
[426321945,1782304244000,-150.0,0.00021435,4]
[426321949,1782304244000,-190.82820862,0.00021454,4]
[426321941,1782304244000,-190.82820862,0.00021407,4]
[426321950,1782304244000,-500.0,0.0002147,2]
[426321948,1782304244000,-150.0,0.00021454,4]
[426321944,1782304244000,-152.0,0.00021431,3]
[426321953,1782304244000,-150.0,0.00021492,4]
[426321954,1782304244000,-150.0,0.00021492,4]
[426321955,1782304244000,-500.0,0.000215,2]
[426321956,1782304244000,-200.0,0.000215,2]
[426321957,1782304244000,-151.0,0.000215,2]
[426321959,1782304244000,-151.0,0.000215,2]
[426321958,1782304244000,-3185.97681176,0.000215,2]
[426321960,1782304244000,-585.33128239,0.000215,2]
[426321961,1782304244000,-151.0,0.000215,2]
[426321962,1782304244000,-155.66481189,0.000215,2]
[426321965,1782304244000,-174.61919141,0.000215,2]
[426321963,1782304244000,-517.75176631,0.000215,2]
[426321964,1782304244000,-151.0,0.000215,2]
[426321913,1782304244000,-785.0,0.00021271,2]
[426321940,1782304244000,-849.93,0.000214,2]
[426321939,1782304244000,-1840.99930576,0.000214,2]
[426321952,1782304244000,-10329.0,0.00021483,3]
[426321937,1782304244000,-328806.9679852,0.000214,5]
[426321912,1782304244000,-190.82820862,0.00021268,4]
[426321935,1782304244000,-1304.86,0.00021399,2]
[426321911,1782304244000,-150.0,0.00021262,4]
[426321909,1782304244000,-150.0,0.00021262,4]
[426321914,1782304244000,-150.0,0.00021284,4]
[426321915,1782304244000,-190.82820862,0.00021291,4]
[426321919,1782304244000,-190.82820862,0.00021338,4]
[426321918,1782304244000,-150.0,0.0002132,4]
[426321921,1782304244000,-500.0,0.00021356,7]
[426321922,1782304244000,-500.0,0.00021356,7]
[426321923,1782304244000,-176.57932498,0.00021361,2]
[426321926,1782304244000,-1021.18,0.0002137,2]
[426321925,1782304244000,-150.0,0.00021369,4]
[426321920,1782304244000,-500.0,0.00021356,7]
[426321938,1782304244000,-1495.09081144,0.000214,2]
[426321928,1782304244000,-296.02493511,0.0002137,3]
[426321924,1782304244000,-190.82820862,0.00021361,4]
[426321930,1782304244000,-150.0,0.00021377,4]
[426321932,1782304244000,-190.82820862,0.00021384,4]
[426321931,1782304244000,-150.0,0.00021377,4]
[426321929,1782304244000,-150.0,0.00021377,4]
[426321933,1782304244000,-180.84613501,0.00021399,2]
[426321934,1782304244000,-1304.86,0.00021399,2]
[426321927,1782304244000,-152.0,0.0002137,3]
[426321936,1782304244000,-500.0,0.00021399,2]
[426322003,1782304245000,-500.0,0.000215,2]
[426322009,1782304245000,-151.0,0.000215,2]
[426322006,1782304245000,-151.0,0.000215,2]
[426322004,1782304245000,-500.0,0.000215,2]
[426322001,1782304245000,-151.0,0.000215,2]
[426321993,1782304245000,-500.0,0.000215,2]
[426321999,1782304245000,-187.78006524,0.000215,2]
[426322000,1782304245000,-500.0,0.000215,2]
[426321991,1782304245000,-151.0,0.000215,2]
[426322005,1782304245000,-151.0,0.000215,2]
[426321996,1782304245000,-500.0,0.000215,2]
[426322002,1782304245000,-152.0,0.000215,2]
[426322008,1782304245000,-500.0,0.000215,2]
[426322040,1782304245000,-500.0,0.000215,2]
[426322014,1782304245000,-151.0,0.000215,2]